bitfinex-derivatives/quotes_BTCF0:USTF0_20250929
["timestamp","ask_amount","ask_price","bid_price","bid_amount"]
[1759113785596,1.01184107,111740.0,111730.0,0.03558]
[1759113785901,1.83224107,111740.0,111730.0,0.03658]
[1759113786201,1.83724107,111740.0,111730.0,0.03958]
[1759113786792,1.31821721,111740.0,111730.0,0.03958]
[1759113786999,1.74778917,111740.0,111730.0,0.1290399]
[1759113787199,0.92738917,111740.0,111730.0,0.38855183]
[1759113787396,1.48827724,111740.0,111730.0,0.38855183]
[1759113787699,1.48827724,111740.0,111730.0,0.1290399]
[1759113787901,1.48827724,111740.0,111730.0,0.38855183]
[1759113788095,1.74778917,111740.0,111730.0,0.38855183]
[1759113789606,2.23724107,111740.0,111730.0,0.004]
[1759113789997,2.23724107,111740.0,111730.0,0.02574]
[1759113791198,2.23724107,111740.0,111730.0,0.004]
[1759113791503,2.23724107,111740.0,111730.0,0.02574]
[1759113792999,2.496753,111740.0,111730.0,0.004]
[1759113793200,2.52882681,111740.0,111730.0,0.004]
[1759113794504,2.496753,111740.0,111730.0,0.004]
[1759113794904,2.52882681,111740.0,111730.0,0.004]
[1759113795199,2.496753,111740.0,111730.0,0.003]
[1759113795400,0.0894679,111720.0,111710.0,0.36268769]
[1759113795707,1.83113707,111720.0,111710.0,0.12617576]
[1759113796204,1.01069707,111720.0,111710.0,0.12617576]
[1759113796403,1.83113707,111720.0,111710.0,0.12617576]
[1759113796997,1.83213707,111720.0,111710.0,0.12917576]
[1759113797199,1.91711953,111720.0,111710.0,0.38968769]
[1759113799198,1.09667953,111720.0,111710.0,0.38968769]
[1759113799508,1.91707953,111720.0,111710.0,0.38968769]
[1759113800105,0.57765567,111720.0,111710.0,0.38968769]
[1759113800300,1.91707953,111720.0,111710.0,0.38968769]
[1759113801406,1.91711953,111720.0,111710.0,0.38968769]
[1759113801805,1.91707953,111720.0,111710.0,0.38968769]
[1759113802206,1.09667953,111720.0,111710.0,0.38968769]
[1759113802413,1.91707953,111720.0,111710.0,0.38968769]
[1759113804210,1.09667953,111720.0,111710.0,0.38968769]
[1759113804598,1.91707953,111720.0,111710.0,0.38968769]
[1759113805212,1.91707953,111720.0,111710.0,0.13017576]
[1759113805505,1.91707953,111720.0,111710.0,0.38968769]
[1759113805709,1.09667953,111720.0,111710.0,0.38968769]
[1759113805907,1.6575676,111720.0,111710.0,0.38968769]
[1759113806805,1.39805567,111720.0,111710.0,0.38968769]
[1759113807110,1.6575676,111720.0,111710.0,0.38968769]
[1759113808711,0.8371676,111720.0,111710.0,0.38968769]
[1759113808909,1.6575276,111720.0,111710.0,0.38968769]
[1759113809705,0.12023073,111720.0,111710.0,1.04919962]
[1759113810013,0.94059073,111720.0,111710.0,0.78968769]
[1759113810312,0.94080414,111720.0,111710.0,0.78968769]
[1759113810518,0.007,111720.0,111710.0,1.71774598]
[1759113810704,0.3608,111740.0,111730.0,0.1241299]
[1759113811017,1.22390082,111740.0,111730.0,0.38364183]
[1759113812208,1.22890082,111740.0,111730.0,0.38864183]
[1759113812409,0.40858082,111740.0,111730.0,0.64815376]
[1759113812618,1.22990082,111740.0,111730.0,0.64815376]
[1759113812913,0.86910082,111740.0,111730.0,1.00895376]
[1759113814316,0.02640082,111740.0,111730.0,1.00895376]
[1759113814614,0.84668082,111740.0,111730.0,1.00895376]
[1759113815616,0.84668082,111740.0,111730.0,0.4899299]
[1759113815617,0.02640082,111740.0,111730.0,0.4899299]
[1759113815817,0.86906082,111740.0,111730.0,1.00895376]
[1759113816319,0.86906082,111740.0,111730.0,0.74948554]
[1759113818117,0.02640082,111740.0,111730.0,1.14948554]
[1759113818422,0.006,111740.0,111730.0,1.14948554]
[1759113819524,0.02838,111740.0,111730.0,0.74948554]
[1759113823016,0.006,111740.0,111730.0,1.14948554]
[1759113823328,0.006,111740.0,111730.0,1.45727561]
[1759113823627,0.006,111740.0,111730.0,1.19771997]
[1759113824020,0.006,111740.0,111730.0,2.01783997]
[1759113824523,0.006,111740.0,111730.0,1.19771997]
[1759113824827,0.006,111740.0,111730.0,2.01783997]
[1759113825231,0.006,111740.0,111730.0,1.75828433]
[1759113825424,0.006,111740.0,111730.0,2.01779997]
[1759113825825,0.070237,111760.0,111750.0,0.01261]
[1759113826033,1.20326,111770.0,111760.0,0.1241059]
[1759113826329,1.22371958,111770.0,111760.0,0.38366154]
[1759113826529,0.40363958,111770.0,111760.0,0.38366154]
[1759113827327,0.41163958,111770.0,111760.0,0.38466154]
[1759113827830,0.50106748,111770.0,111760.0,0.1251059]
[1759113828035,0.50106748,111770.0,111760.0,0.38466154]
[1759113828727,0.41163958,111770.0,111760.0,0.38466154]
[1759113829636,0.42871232,111770.0,111760.0,0.38966154]
[1759113830537,0.50015909,111770.0,111760.0,0.38966154]
[1759113830828,0.58958699,111770.0,111760.0,0.38966154]
[1759113831428,0.50015909,111770.0,111760.0,0.38966154]
[1759113834437,1.32007909,111770.0,111760.0,0.38966154]
[1759113834830,1.40950709,111770.0,111760.0,0.38966154]
[1759113836034,1.4415809,111770.0,111760.0,0.38966154]
[1759113840137,1.4415809,111770.0,111760.0,0.1301059]
[1759113840336,1.4415809,111770.0,111760.0,0.38966154]
[1759113841033,1.4415809,111770.0,111760.0,0.30022564]
[1759113841034,2.06193654,111770.0,111760.0,0.30022564]
[1759113841231,2.06193654,111770.0,111760.0,0.04067]
[1759113841232,2.47797802,111770.0,111760.0,0.04067]
[1759113842030,2.45751844,111770.0,111760.0,0.04067]
[1759113842231,2.47800161,111770.0,111760.0,0.04067]
[1759113843236,2.47800161,111770.0,111760.0,0.006]
[1759113843237,2.48131161,111770.0,111760.0,0.006]
[1759113844438,2.48131161,111770.0,111760.0,0.02869]
[1759113845835,2.48131161,111770.0,111760.0,0.006]
[1759113846035,2.46529546,111770.0,111760.0,0.006]
[1759113847638,2.46529546,111770.0,111760.0,0.02869]
[1759113850149,2.46529546,111770.0,111760.0,0.006]
[1759113853450,2.51341075,111770.0,111760.0,0.006]
[1759113853946,0.098764,111750.0,111740.0,0.04634288]
[1759113854149,0.112042,111740.0,111730.0,0.03514]
[1759113854349,1.57248081,111740.0,111730.0,0.03514]
[1759113854548,1.31292517,111740.0,111730.0,0.03514]
[1759113855346,1.57348081,111740.0,111730.0,0.03514]
[1759113855849,0.74988081,111740.0,111730.0,0.03514]
[1759113856044,0.11205,111730.0,111720.0,0.03557]
[1759113856249,0.75288881,111730.0,111720.0,0.03557]
[1759113856439,0.77349549,111730.0,111720.0,0.02253]
[1759113856640,1.59640549,111730.0,111720.0,0.02253]
[1759113856845,1.59140549,111730.0,111720.0,0.02253]
[1759113857048,0.112058,111720.0,111710.0,0.02260986]
[1759113857349,0.75289681,111720.0,111710.0,0.02260986]
[1759113857952,1.57249681,111720.0,111710.0,0.03602986]
[1759113858343,1.64203501,111720.0,111710.0,0.12550586]
[1759113858547,0.82239501,111720.0,111710.0,0.12550586]
[1759113858852,1.64199501,111720.0,111710.0,0.12550586]
[1759113859039,0.82339501,111720.0,111710.0,0.12950586]
[1759113859246,1.64299501,111720.0,111710.0,0.12950586]
[1759113859447,1.64303501,111720.0,111710.0,0.12950586]
[1759113860351,1.64903501,111720.0,111710.0,0.12950586]
[1759113860756,1.65800162,111720.0,111710.0,0.12950586]
[1759113863355,1.63751845,111720.0,111710.0,0.12950586]
[1759113863856,0.81787845,111720.0,111710.0,0.12950586]
[1759113864155,1.63751845,111720.0,111710.0,0.12950586]
[1759113864461,1.54905045,111720.0,111710.0,0.12950586]
[1759113865158,0.72941045,111720.0,111710.0,0.12950586]
[1759113865357,1.54909045,111720.0,111710.0,0.12950586]
[1759113865545,1.63855845,111720.0,111710.0,0.12950586]
[1759113865750,0.81887845,111720.0,111710.0,0.12950586]
[1759113865945,1.63851845,111720.0,111710.0,0.12950586]
[1759113867558,0.81887845,111720.0,111710.0,0.12950586]
[1759113867749,1.63855845,111720.0,111710.0,0.12950586]
[1759113867946,1.64687845,111720.0,111710.0,0.09355586]
[1759113868251,2.28782885,111720.0,111710.0,0.02671986]
[1759113868452,2.30897738,111720.0,111710.0,0.02671986]
[1759113868850,2.04942174,111720.0,111710.0,0.00407986]
[1759113869056,2.04942174,111720.0,111710.0,0.02671986]
[1759113869457,2.04842174,111720.0,111710.0,0.02371986]
[1759113869758,2.04742174,111720.0,111710.0,0.02371986]
[1759113872055,2.04742174,111720.0,111710.0,0.00107986]
[1759113872254,1.7878661,111720.0,111710.0,0.02371986]
[1759113872656,2.04742174,111720.0,111710.0,0.02371986]
[1759113873162,2.04742174,111720.0,111710.0,0.11319606]
[1759113874159,2.04778174,111720.0,111710.0,0.11319606]
[1759113875159,2.04766174,111720.0,111710.0,0.11319606]
[1759113875559,2.04766174,111720.0,111710.0,0.12661606]
[1759113875560,1.7797861,111720.0,111710.0,0.12661606]
[1759113875750,2.03934174,111720.0,111710.0,0.12661606]
[1759113876157,1.21942174,111720.0,111710.0,0.12661606]
[1759113876363,1.94975374,111720.0,111710.0,0.12661606]
[1759113877568,1.12995374,111720.0,111710.0,0.12661606]
[1759113877767,1.94967374,111720.0,111710.0,0.12661606]
[1759113878266,2.20959018,111720.0,111710.0,0.3863521]
[1759113878668,0.8703981,111720.0,111710.0,0.3863521]
[1759113878872,2.20959018,111720.0,111710.0,0.3863521]
[1759113879064,1.94985414,111720.0,111710.0,0.3863521]
[1759113880766,0.50063149,111720.0,111710.0,0.7863521]
[1759113880971,1.32039149,111720.0,111710.0,0.7863521]
[1759113881371,1.32935316,111720.0,111710.0,0.7863521]
[1759113881863,1.32935316,111720.0,111710.0,0.3863521]
[1759113882967,1.41882136,111720.0,111710.0,0.3863521]
[1759113883767,1.6785574,111720.0,111710.0,0.3863521]
[1759113884767,1.41882136,111720.0,111710.0,0.3863521]
[1759113884968,1.6785574,111720.0,111710.0,0.3863521]
[1759113885970,1.6785574,111720.0,111710.0,0.3863522]
[1759113885971,2.0393574,111720.0,111710.0,0.3863522]
[1759113886164,2.07145654,111720.0,111710.0,0.3863522]
[1759113886369,0.9024923,111720.0,111710.0,0.3863522]
[1759113886570,1.32931316,111720.0,111710.0,0.3863522]
[1759113886875,0.50959316,111720.0,111710.0,0.3863522]
[1759113887065,0.12620316,111720.0,111710.0,1.04608824]
[1759113887264,0.94592316,111720.0,111710.0,1.04608824]
[1759113887471,0.12620316,111720.0,111710.0,1.04608824]
[1759113887675,0.14934063,111720.0,111710.0,1.04608824]
[1759113887983,0.11724149,111720.0,111710.0,1.40688824]
[1759113888779,0.11754565,111720.0,111710.0,1.40688824]
[1759113888980,0.02589892,111720.0,111710.0,1.40688824]
[1759113889886,0.02589892,111720.0,111710.0,2.22660824]
[1759113891488,0.02589892,111720.0,111710.0,2.23556024]
[1759113891690,0.02589892,111720.0,111710.0,1.40688824]
[1759113891882,0.02589892,111720.0,111710.0,2.22660824]
[1759113894290,0.02589892,111720.0,111710.0,2.22656824]
[1759113896290,0.005,111720.0,111710.0,2.22656824]
[1759113896690,0.005,111720.0,111710.0,2.23550229]
[1759113896891,0.005,111720.0,111710.0,2.22656824]
[1759113899690,0.005,111720.0,111710.0,2.27467924]
[1759113900291,0.005,111720.0,111710.0,2.27463924]
[1759113901296,0.005,111720.0,111710.0,2.28346925]
[1759113901795,0.39289914,111750.0,111740.0,0.1240622]
[1759113901796,0.72266,111750.0,111740.0,0.1240622]
[1759113901991,0.40356476,111750.0,111740.0,0.64353428]
[1759113902995,0.40356476,111750.0,111740.0,0.1240622]
[1759113903193,0.40356476,111750.0,111740.0,0.64453428]
[1759113903398,0.49900676,111750.0,111740.0,0.64453428]
[1759113903900,0.40956476,111750.0,111740.0,0.64453428]
[1759113904099,0.49900776,111750.0,111740.0,0.64453428]
[1759113904493,0.5188953,111750.0,111740.0,0.64553428]
[1759113906201,0.4294523,111750.0,111740.0,0.64553428]
[1759113906605,0.50132685,111750.0,111740.0,0.64553428]
[1759113909507,0.49932685,111750.0,111740.0,0.64553428]
[1759113910206,0.49832685,111750.0,111740.0,0.64753428]
[1759113910906,1.24750709,111750.0,111740.0,0.03861]
[1759113911105,1.24750709,111750.0,111740.0,0.004]
[1759113911106,1.40442709,111750.0,111740.0,0.004]
[1759113911306,1.53611439,111750.0,111740.0,0.004]
[1759113911506,1.53611439,111750.0,111710.0,0.3844996]
[1759113911507,0.0894673,111720.0,111710.0,0.3844996]
[1759113911711,0.7527681,111720.0,111710.0,0.12476356]
[1759113912002,0.7527681,111720.0,111710.0,0.3844996]
[1759113912003,0.6633008,111720.0,111710.0,0.3844996]
[1759113912711,0.6633008,111720.0,111710.0,0.12476356]
[1759113913008,0.6633008,111720.0,111710.0,0.3844996]
[1759113913212,0.6643008,111720.0,111710.0,0.3874996]
[1759113913598,0.6643008,111720.0,111710.0,0.3914996]
[1759113913803,0.6693008,111720.0,111710.0,0.3914996]
[1759113915610,1.43954956,111720.0,111710.0,0.04228986]
[1759113915806,1.43954956,111720.0,111710.0,0.09655526]
[1759113916000,2.25902956,111720.0,111710.0,0.09655526]
[1759113916314,2.25902956,111720.0,111710.0,0.13197526]
[1759113916603,2.16956216,111720.0,111710.0,0.3917113]
[1759113916811,2.16956216,111720.0,111710.0,0.3907113]
[1759113916812,1.99929352,111720.0,111710.0,0.3907113]
[1759113917205,1.99829352,111720.0,111710.0,0.3877113]
[1759113917406,1.99829352,111720.0,111710.0,0.3887113]
[1759113917807,2.25802956,111720.0,111710.0,0.03949986]
[1759113918205,1.43854956,111720.0,111710.0,0.03949986]
[1759113918412,2.25806956,111720.0,111710.0,0.00407986]
[1759113918912,2.25806956,111720.0,111710.0,0.02726986]
[1759113919509,2.25806956,111720.0,111710.0,0.00407986]
[1759113924207,2.25806956,111720.0,111700.0,0.01432449]
[1759113924208,0.0894765,111710.0,111700.0,0.01432449]
[1759113924408,1.01636334,111710.0,111700.0,0.01432449]
[1759113924609,0.7566273,111710.0,111700.0,0.01432449]
[1759113925004,0.7556273,111710.0,111700.0,0.01432449]
[1759113925205,0.75470716,111710.0,111700.0,0.01432449]
[1759113925410,1.57422716,111710.0,111700.0,0.01432449]
[1759113925804,1.57822716,111710.0,111700.0,0.01532449]
[1759113926709,1.58822716,111710.0,111700.0,0.01532449]
[1759113927919,0.76445716,111710.0,111700.0,0.14070899]
[1759113928114,1.58397716,111710.0,111700.0,0.40044503]
[1759113929111,0.83776736,111710.0,111700.0,0.40044503]
[1759113929312,1.65932736,111710.0,111700.0,0.66018107]
[1759113929518,1.65928736,111710.0,111700.0,0.40044503]
[1759113930116,0.83976736,111710.0,111700.0,0.40044503]
[1759113930510,1.65932736,111710.0,111700.0,0.40044503]
[1759113930910,0.75029086,111710.0,111700.0,0.40044503]
[1759113931118,1.31007482,111710.0,111700.0,0.66018107]
[1759113933019,1.39955132,111710.0,111700.0,0.66018107]
[1759113933607,1.65928736,111710.0,111700.0,0.66018107]
[1759113934721,1.56981086,111710.0,111700.0,0.66018107]
[1759113935025,0.49055482,111710.0,111700.0,0.66018107]
[1759113935220,1.31007482,111710.0,111700.0,0.66018107]
[1759113938123,0.49055482,111710.0,111700.0,0.66018107]
[1759113938325,1.31007482,111710.0,111700.0,0.40043802]
[1759113940023,0.49055482,111710.0,111700.0,0.40043802]
[1759113940218,1.31003482,111710.0,111700.0,0.40043802]
[1759113940818,0.49055482,111710.0,111700.0,0.40043802]
[1759113941126,1.31003482,111710.0,111700.0,0.40043802]
[1759113947427,1.31003482,111710.0,111700.0,0.14070899]
[1759113947724,1.31003482,111710.0,111700.0,0.40043802]
[1759113948325,0.10825482,111710.0,111700.0,0.40043802]
[1759113948621,0.10825482,111710.0,111700.0,1.16123802]
[1759113955629,0.13051482,111710.0,111700.0,0.90150899]
[1759113955927,0.13051482,111710.0,111700.0,1.98055802]
[1759113956331,0.49131482,111710.0,111700.0,0.14070899]
[1759113956530,0.58079132,111710.0,111700.0,0.40043802]
[1759113958932,0.49131482,111710.0,111700.0,0.40043802]
[1759113959130,0.13051482,111710.0,111700.0,0.40043802]
[1759113960229,0.03494462,111710.0,111700.0,0.80043802]
[1759113960434,0.38306,111730.0,111720.0,0.1255384]
[1759113960736,0.02226,111730.0,111720.0,0.64499646]
[1759113961830,0.04226,111730.0,111720.0,0.64499646]
[1759113962029,0.05226,111730.0,111720.0,0.38626743]
[1759113963838,0.05226,111730.0,111720.0,0.1265384]
[1759113964040,0.5025204,111730.0,111720.0,0.37251743]
[1759113964234,0.41306,111730.0,111720.0,0.38626743]
[1759113966734,0.41306,111730.0,111720.0,0.1265384]
[1759113966937,0.41306,111730.0,111720.0,0.38626743]
[1759113967535,0.03,111730.0,111720.0,1.40679646]
[1759113967740,0.03,111730.0,111720.0,2.22591646]
[1759113967932,0.03,111730.0,111720.0,2.27414812]
[1759113968131,0.03,111730.0,111720.0,2.28327203]
[1759113968735,0.03,111730.0,111720.0,2.27414812]
[1759113970142,0.03,111730.0,111720.0,2.22591646]
[1759113970641,0.03,111730.0,111720.0,2.27414812]
[1759113971043,0.61438,111760.0,111750.0,0.1255144]
[1759113971242,0.61438,111760.0,111750.0,0.64497246]
[1759113971538,0.7038164,111760.0,111750.0,0.38524343]
[1759113972337,0.13269603,111760.0,111750.0,0.38524343]
[1759113972535,0.05825963,111760.0,111750.0,0.38724343]
[1759113973341,0.05162,111760.0,111750.0,1.01277246]
[1759113974642,0.029,111760.0,111750.0,1.01277246]
[1759113974839,0.029,111760.0,111750.0,1.83173246]
[1759113975044,0.029,111760.0,111750.0,1.01277246]
[1759113975234,0.029,111760.0,111750.0,1.83173246]
[1759113975431,0.029,111760.0,111750.0,1.01277246]
[1759113975841,0.029,111760.0,111750.0,1.83173246]
[1759113976143,0.03562214,111760.0,111750.0,1.82973246]
[1759113976343,0.03562214,111760.0,111750.0,1.01077246]
[1759113976544,0.02162214,111760.0,111750.0,1.00577246]
[1759113976843,0.02562214,111760.0,111750.0,1.82769246]
[1759113977036,0.02562214,111760.0,111750.0,1.00877246]
[1759113977236,0.02562214,111760.0,111750.0,1.82769246]
[1759113978344,0.02562214,111760.0,111750.0,1.00877246]
[1759113978643,0.02562214,111760.0,111750.0,1.82765246]
[1759113979044,0.02562214,111760.0,111750.0,1.00877246]
[1759113979237,0.02562214,111760.0,111750.0,1.82765246]
[1759113980043,0.02562214,111760.0,111750.0,1.00877246]
[1759113980240,0.13627854,111760.0,111750.0,0.38824343]
[1759113980434,0.49707854,111760.0,111750.0,1.20708343]
[1759113980744,0.49707854,111760.0,111750.0,0.38824343]
[1759113983449,0.51014854,111760.0,111750.0,0.1285144]
[1759113983650,0.51014854,111760.0,111750.0,0.38824343]
[1759113983950,0.49707854,111760.0,111750.0,0.38824343]
[1759113985852,0.13627854,111760.0,111750.0,0.38824343]
[1759113986055,0.91014854,111760.0,111750.0,0.38824343]
[1759113987953,0.89707854,111760.0,111750.0,0.38824343]
[1759113992756,0.80764214,111760.0,111750.0,0.38824343]
[1759113993351,0.80764214,111760.0,111750.0,0.64797246]
[1759113993352,0.04684214,111760.0,111750.0,0.64797246]
[1759113993557,0.02562214,111760.0,111750.0,1.40877246]
[1759113994860,0.005,111760.0,111750.0,1.41763925]
[1759113995361,0.02560973,111760.0,111750.0,1.41763925]
[1759113995561,0.38199,111780.0,111770.0,0.1240984]
[1759113995769,0.38199,111780.0,111770.0,0.38382743]
[1759113996059,0.4845353,111780.0,111770.0,0.38382743]
[1759113996658,0.5739557,111780.0,111770.0,0.38782743]
[1759113996857,0.5859557,111780.0,111770.0,0.38782743]
[1759113997160,0.5096053,111780.0,111770.0,0.38782743]
[1759113997559,1.25875473,111780.0,111770.0,0.004]
[1759113997754,1.54349991,111780.0,111770.0,0.005]
[1759113998453,0.0894435,111760.0,111740.0,0.34917783]
[1759113998755,0.74423813,111750.0,111740.0,0.1104624]
[1759113998961,0.4845091,111750.0,111740.0,0.1104624]
[1759113999266,0.38199,111750.0,111740.0,0.38385143]
[1759113999467,0.02119,111750.0,111740.0,0.38385143]
[1759113999654,0.38199,111750.0,111740.0,0.38385143]
[1759113999960,0.4845044,111750.0,111740.0,0.39485143]
[1759114000260,0.7761408,111750.0,111740.0,0.39469919]
[1759114000459,0.74408119,111750.0,111740.0,0.39469919]
[1759114001156,0.74708119,111750.0,111740.0,0.39469919]
[1759114001356,0.74708119,111750.0,111740.0,0.38369919]
[1759114001655,0.75108119,111750.0,111740.0,0.39069919]
[1759114002359,0.75108119,111750.0,111740.0,0.007]
[1759114002360,1.44271759,111750.0,111740.0,0.007]
[1759114002665,1.41065798,111750.0,111740.0,0.007]
[1759114003156,1.45875291,111750.0,111740.0,0.007]
[1759114003356,1.60735291,111750.0,111740.0,0.007]
[1759114004956,0.1237204,111730.0,111720.0,0.25957679]
[1759114005266,0.1106584,111720.0,111710.0,0.38380217]
[1759114005463,0.74410519,111720.0,111710.0,7.898e-05]
[1759114005656,1.00368198,111720.0,111710.0,7.898e-05]
[1759114005853,1.43571533,111720.0,111710.0,7.898e-05]
[1759114006053,1.38868198,111720.0,111710.0,7.898e-05]
[1759114006462,1.38668198,111720.0,111710.0,7.898e-05]
[1759114006666,2.20560198,111720.0,111710.0,0.08955548]
[1759114007063,2.27661555,111720.0,111710.0,0.08955548]
[1759114007561,2.29710088,111720.0,111710.0,7.898e-05]
[1759114007866,2.29710088,111720.0,111710.0,0.00507898]
[1759114007867,2.30110088,111720.0,111710.0,0.00507898]
[1759114008066,1.48218088,111720.0,111710.0,0.09455548]
[1759114008359,2.22879248,111720.0,111710.0,0.11556548]
[1759114008763,2.23179248,111720.0,111710.0,0.11556548]
[1759114009164,2.23187248,111720.0,111710.0,0.11556548]
[1759114010170,0.75313569,111720.0,111710.0,0.37514227]
[1759114010364,1.57233569,111720.0,111710.0,0.38901227]
[1759114011766,1.57221569,111720.0,111710.0,0.38901227]
[1759114012666,1.57213569,111720.0,111710.0,0.38901227]
[1759114013165,1.3124389,111720.0,111710.0,0.38901227]
[1759114013560,1.57201569,111720.0,111710.0,0.38901227]
[1759114015767,0.4935589,111720.0,111710.0,0.38901227]
[1759114016066,1.72061569,111720.0,111710.0,0.38901227]
[1759114016260,1.3124389,111720.0,111710.0,0.38901227]
[1759114016461,0.4935589,111720.0,111710.0,0.38901227]
[1759114016660,1.55890569,111720.0,111710.0,0.38901227]
[1759114017064,1.2993289,111720.0,111710.0,0.38901227]
[1759114017565,1.2993289,111720.0,111710.0,1.40938906]
[1759114017566,0.1196889,111720.0,111710.0,1.40938906]
[1759114017761,0.07801357,111720.0,111710.0,1.40938906]
[1759114018161,0.8415,111730.0,111720.0,0.126527]
[1759114018361,0.8415,111730.0,111720.0,1.00648058]
[1759114018667,0.0225,111730.0,111720.0,1.00648058]
[1759114019166,0.04323161,111730.0,111720.0,1.00648058]
[1759114019364,0.03132058,111740.0,111730.0,0.1265204]
[1759114019558,0.87064103,111740.0,111730.0,0.64567398]
[1759114019761,0.96009343,111740.0,111730.0,0.38609719]
[1759114021064,0.95849163,111740.0,111730.0,0.38909719]
[1759114021271,0.95849086,111740.0,111730.0,0.38909719]
[1759114021771,0.96349086,111740.0,111730.0,0.38909719]
[1759114023470,0.96349086,111740.0,111730.0,0.64867398]
[1759114024676,0.96349086,111740.0,111730.0,0.38909719]
[1759114026575,0.96349086,111740.0,111730.0,0.64867398]
[1759114026576,1.32429086,111740.0,111730.0,0.64867398]
[1759114026972,0.13579028,111740.0,111730.0,1.04867398]
[1759114027178,0.11329028,111740.0,111730.0,1.04867398]
[1759114027370,0.04243968,111740.0,111730.0,1.66905077]
[1759114027572,0.022,111740.0,111730.0,1.40947398]
[1759114027876,0.022,111740.0,111730.0,2.22831398]
[1759114028079,0.022,111740.0,111730.0,1.40947398]
[1759114028381,0.022,111740.0,111730.0,2.22831398]
[1759114029375,0.022,111740.0,111730.0,2.22827398]
[1759114029677,0.022,111740.0,111730.0,1.40947398]
[1759114029881,0.022,111740.0,111730.0,2.22827398]
[1759114030478,0.022,111740.0,111730.0,1.40947398]
[1759114030683,0.022,111740.0,111730.0,2.22827398]
[1759114032673,0.022,111740.0,111730.0,1.40947398]
[1759114032878,0.022,111740.0,111730.0,2.22823398]
[1759114033981,0.022,111740.0,111730.0,1.40947398]
[1759114034181,0.022,111740.0,111730.0,2.22819398]
[1759114035882,0.022,111740.0,111730.0,2.48777077]
[1759114036780,0.022,111740.0,111730.0,2.22819398]
[1759114036988,0.022,111740.0,111730.0,2.48777077]
[1759114037779,0.022,111740.0,111730.0,1.66905077]
[1759114037974,0.022,111740.0,111730.0,2.48773077]
[1759114042084,0.07241893,111760.0,111750.0,0.03551]
[1759114042286,0.02046665,111760.0,111750.0,0.91546358]
[1759114042487,0.04155665,111760.0,111750.0,0.91546358]
[1759114042884,0.04155665,111760.0,111750.0,1.73410358]
[1759114043190,0.11304558,111760.0,111750.0,1.82354778]
[1759114043380,0.06655665,111760.0,111750.0,1.82554778]
[1759114043582,0.04546665,111760.0,111750.0,1.82554778]
[1759114043777,0.04546665,111760.0,111750.0,2.08512457]
[1759114043981,0.025,111760.0,111750.0,2.84592457]
[1759114044290,0.025,111760.0,111750.0,2.84692457]
[1759114044487,0.034,111760.0,111750.0,2.84692457]
[1759114044888,0.025,111760.0,111750.0,2.84592457]
[1759114045584,0.85229929,111790.0,111780.0,0.1026102]
[1759114045884,0.87277354,111790.0,111780.0,0.64408378]
[1759114046184,0.88195796,111790.0,111780.0,0.64408378]
[1759114046882,0.95319882,111790.0,111780.0,0.64408378]
[1759114047483,0.96019882,111790.0,111780.0,0.64508378]
[1759114047684,0.97419882,111790.0,111780.0,0.64908378]
[1759114049685,0.92471587,111790.0,111780.0,0.64908378]
[1759114049881,1.01412807,111790.0,111780.0,0.64908378]
[1759114050881,0.56391587,111790.0,111780.0,0.64908378]
[1759114051088,0.14298953,111790.0,111780.0,0.64908378]
[1759114051385,0.14298953,111790.0,111780.0,1.46756378]
[1759114051997,0.14298953,111790.0,111780.0,0.64908378]
[1759114052287,0.13380511,111790.0,111780.0,1.46756378]
[1759114053694,0.11271511,111790.0,111780.0,1.82836378]
[1759114055896,0.11271511,111790.0,111780.0,1.00988378]
[1759114056091,0.11271511,111790.0,111780.0,1.82828378]
[1759114056688,0.11271511,111790.0,111780.0,1.00988378]
[1759114057196,0.13380511,111790.0,111780.0,1.46748378]
[1759114057591,0.13380511,111790.0,111780.0,0.38950699]
[1759114057793,0.13380511,111790.0,111780.0,1.46744378]
[1759114059304,0.13380511,111790.0,111780.0,0.64908378]
[1759114059496,0.13380511,111790.0,111780.0,1.46744378]
[1759114060197,0.13380511,111790.0,111780.0,1.46695174]
[1759114060400,0.13380511,111790.0,111780.0,1.46691174]
[1759114060599,0.12680511,111790.0,111780.0,1.46591174]
[1759114061003,0.11280511,111790.0,111780.0,1.46191174]
[1759114061203,0.11680511,111790.0,111780.0,1.46491174]
[1759114062801,0.11680511,111790.0,111780.0,0.64659174]
[1759114063202,0.58011731,111790.0,111780.0,1.20558097]
[1759114063504,1.23944808,111790.0,111780.0,0.02532]
[1759114063802,1.23944808,111790.0,111780.0,0.28465077]
[1759114064001,0.98011731,111790.0,111780.0,0.28465077]
[1759114064908,0.98011731,111790.0,111780.0,0.37407097]
[1759114066009,1.01215066,111790.0,111780.0,0.37407097]
[1759114067211,1.01215066,111790.0,111780.0,0.38726097]
[1759114069010,1.83039066,111790.0,111780.0,0.38726097]
[1759114070218,1.01215066,111790.0,111780.0,0.38726097]
[1759114070406,1.81729066,111790.0,111780.0,0.38726097]
[1759114071315,1.41729066,111790.0,111780.0,0.38726097]
[1759114071614,0.59905066,111790.0,111780.0,0.38726097]
[1759114073217,0.64710069,111790.0,111780.0,0.38726097]
[1759114075916,0.56701731,111790.0,111780.0,0.38726097]
[1759114077018,0.20621731,111790.0,111780.0,0.38726097]
[1759114084928,0.56701731,111790.0,111780.0,0.38726097]
[1759114085824,0.56701731,111790.0,111780.0,0.1279302]
[1759114086025,0.59905066,111790.0,111780.0,0.38726097]
[1759114087523,0.50963846,111790.0,111780.0,0.38726097]
[1759114088129,0.59905066,111790.0,111780.0,0.38726097]
[1759114088430,0.23825066,111790.0,111780.0,0.38726097]
[1759114089132,0.20621731,111790.0,111780.0,0.38726097]
[1759114091733,1.27101143,111790.0,111780.0,0.003]
[1759114092033,1.28702811,111790.0,111780.0,0.003]
[1759114092633,1.23897808,111790.0,111780.0,0.003]
[1759114092930,1.44599984,111790.0,111780.0,0.1157402]
[1759114093137,1.70533061,111790.0,111780.0,0.1157402]
[1759114093528,0.88725061,111790.0,111780.0,0.1157402]
[1759114093739,1.70533061,111790.0,111780.0,0.1157402]
[1759114094236,1.7374989,111790.0,111780.0,0.1157402]
[1759114095739,0.9194189,111790.0,111780.0,0.1157402]
[1759114095938,1.68922637,111790.0,111780.0,0.1157402]
[1759114096139,1.01964637,111790.0,111780.0,0.1157402]
[1759114096441,1.4298956,111790.0,111780.0,0.1157402]
[1759114097632,1.4298956,111790.0,111780.0,0.37507097]
[1759114097932,2.08922637,111790.0,111780.0,0.003]
[1759114098637,1.27114637,111790.0,111780.0,0.003]
[1759114098839,1.8298956,111790.0,111780.0,0.02408]
[1759114099034,2.08922637,111790.0,111780.0,0.02408]
[1759114100040,2.08922637,111790.0,111780.0,0.003]
[1759114100641,1.68922637,111790.0,111780.0,0.02408]
[1759114101931,1.68922637,111790.0,111780.0,0.003]
[1759114102130,1.68922637,111790.0,111780.0,0.02408]
[1759114103640,1.68922637,111790.0,111780.0,0.003]